[Event "*** Titled Tuesday Blitz"]
[Site "Chess.com"]
[Date "2020.03.03"]
[Round "6"]
[White "Ali_rastbod"]
[Black "VerdeNotte"]
[Result "1-0"]
[WhiteElo "2666"]
[BlackElo "2794"]
[TimeControl "180+1"]
[EndTime "10:05:30 PST"]
[Termination "Ali_rastbod won by resignation"]

1. Nf3 {[%clk 0:02:59.1]} 1... g6 {[%clk 0:02:32.9]} 2. d4 {[%clk 0:02:54]} 2...
Nf6 {[%clk 0:02:32.3]} 3. g3 {[%clk 0:02:50.2]} 3... Bg7 {[%clk 0:02:32.4]} 4.
Bg2 {[%clk 0:02:50.7]} 4... c5 {[%clk 0:02:32.7]} 5. c4 {[%clk 0:02:48.1]} 5...
cxd4 {[%clk 0:02:31]} 6. Nxd4 {[%clk 0:02:49]} 6... d5 {[%clk 0:02:27]} 7. O-O
{[%clk 0:02:45]} 7... dxc4 {[%clk 0:02:23.4]} 8. Qa4+ {[%clk 0:02:39.2]} 8...
Nbd7 {[%clk 0:02:23.1]} 9. Rd1 {[%clk 0:02:21.3]} 9... O-O {[%clk 0:02:22.6]}
10. Qxc4 {[%clk 0:02:21.7]} 10... Nb6 {[%clk 0:02:00.8]} 11. Qc2 {[%clk
0:02:21.5]} 11... Qe8 {[%clk 0:01:51.6]} 12. Nc3 {[%clk 0:02:16]} 12... a6
{[%clk 0:01:48.5]} 13. Qb3 {[%clk 0:01:56]} 13... Nbd7 {[%clk 0:01:48.3]} 14.
Qb4 {[%clk 0:01:46.4]} 14... Rb8 {[%clk 0:01:44]} 15. h3 {[%clk 0:01:39.8]}
15... e5 {[%clk 0:01:43.7]} 16. Nb3 {[%clk 0:01:36.8]} 16... b6 {[%clk
0:01:42.6]} 17. Be3 {[%clk 0:01:31.9]} 17... Bb7 {[%clk 0:01:42.4]} 18. Bxb7
{[%clk 0:01:31.8]} 18... Rxb7 {[%clk 0:01:43.3]} 19. Rd6 {[%clk 0:01:28.5]}
19... Qe7 {[%clk 0:01:37.2]} 20. Rad1 {[%clk 0:01:28.4]} 20... Ne8 {[%clk
0:01:16.4]} 21. R6d4 {[%clk 0:01:20.5]} 21... Nc5 {[%clk 0:01:16.5]} 22. R4d2
{[%clk 0:01:11.5]} 22... Nxb3 {[%clk 0:01:10.5]} 23. Qxe7 {[%clk 0:00:47.7]}
23... Rxe7 {[%clk 0:01:11.4]} 24. axb3 {[%clk 0:00:48.4]} 24... Nf6 {[%clk
0:01:11.5]} 25. Rd6 {[%clk 0:00:44.6]} 25... Rb7 {[%clk 0:01:04.7]} 26. Rxb6
{[%clk 0:00:40.4]} 26... Rxb6 {[%clk 0:01:03.3]} 27. Bxb6 {[%clk 0:00:41.3]}
27... Rb8 {[%clk 0:01:02.6]} 28. Rd6 {[%clk 0:00:40.4]} 28... h5 {[%clk
0:00:54.2]} 29. Rd8+ {[%clk 0:00:39.2]} 29... Rxd8 {[%clk 0:00:53.7]} 30. Bxd8
{[%clk 0:00:40.1]} 30... Nd7 {[%clk 0:00:53.6]} 31. b4 {[%clk 0:00:35.3]} 31...
f5 {[%clk 0:00:51.5]} 32. e4 {[%clk 0:00:34.2]} 32... fxe4 {[%clk 0:00:45.9]}
33. Nxe4 {[%clk 0:00:35.1]} 33... Bf8 {[%clk 0:00:46.2]} 34. Ba5 {[%clk
0:00:32.8]} 34... Kf7 {[%clk 0:00:46.3]} 35. Kf1 {[%clk 0:00:32.1]} 35... Ke6
{[%clk 0:00:46.6]} 36. Ke2 {[%clk 0:00:32.7]} 36... Kd5 {[%clk 0:00:44.1]} 37.
Kd3 {[%clk 0:00:32.6]} 37... Be7 {[%clk 0:00:41.7]} 38. Nc3+ {[%clk 0:00:32.5]}
38... Kc6 {[%clk 0:00:39.9]} 39. Kc4 {[%clk 0:00:32.9]} 39... e4 {[%clk
0:00:40.1]} 40. Nxe4 {[%clk 0:00:31.9]} 40... Ne5+ {[%clk 0:00:39.4]} 41. Kd4
{[%clk 0:00:32.3]} 41... Nf3+ {[%clk 0:00:37.7]} 42. Ke3 {[%clk 0:00:32.4]}
42... Ne5 {[%clk 0:00:37.3]} 43. b3 {[%clk 0:00:28.4]} 43... Kd5 {[%clk
0:00:28.1]} 44. Nc3+ {[%clk 0:00:28.4]} 44... Ke6 {[%clk 0:00:27]} 45. b5 {[%clk
0:00:26.4]} 45... axb5 {[%clk 0:00:25.6]} 46. Nxb5 {[%clk 0:00:27.3]} 46... Bc5+
{[%clk 0:00:25.9]} 47. Ke2 {[%clk 0:00:23.9]} 47... Nc6 {[%clk 0:00:25.9]} 48.
Bd2 {[%clk 0:00:20.6]} 48... Kd5 {[%clk 0:00:23.8]} 49. Be3 {[%clk 0:00:21]}
49... Be7 {[%clk 0:00:22.8]} 50. Nc3+ {[%clk 0:00:20.8]} 50... Ke5 {[%clk
0:00:22.2]} 51. f4+ {[%clk 0:00:20.9]} 51... Kf5 {[%clk 0:00:20.5]} 52. Kf3
{[%clk 0:00:21.4]} 52... Nb4 {[%clk 0:00:19.6]} 53. g4+ {[%clk 0:00:21.7]} 53...
Ke6 {[%clk 0:00:19.8]} 54. Ke4 {[%clk 0:00:21.8]} 54... hxg4 {[%clk 0:00:18.4]}
55. hxg4 {[%clk 0:00:22.7]} 55... Bf6 {[%clk 0:00:18.8]} 56. Nb5 {[%clk
0:00:19.6]} 56... Kd7 {[%clk 0:00:16.2]} 57. Bd4 {[%clk 0:00:18]} 57... Be7
{[%clk 0:00:16.6]} 58. Nc3 {[%clk 0:00:17.1]} 58... Nc6 {[%clk 0:00:16.9]} 59.
Nd5 {[%clk 0:00:17.1]} 59... Bd6 {[%clk 0:00:15.9]} 60. Be5 {[%clk 0:00:16.3]}
60... Ba3 {[%clk 0:00:15.6]} 61. Bc3 {[%clk 0:00:14.1]} 61... Ke6 {[%clk
0:00:14.7]} 62. Nc7+ {[%clk 0:00:13.1]} 62... Kd7 {[%clk 0:00:14.8]} 63. Nb5
{[%clk 0:00:14]} 63... Bc1 {[%clk 0:00:14.7]} 64. Nd4 {[%clk 0:00:12.1]} 64...
Ne7 {[%clk 0:00:14.6]} 65. Nf3 {[%clk 0:00:12.1]} 65... Ba3 {[%clk 0:00:14.3]}
66. Bf6 {[%clk 0:00:11.9]} 66... Nc8 {[%clk 0:00:12.1]} 67. Ne5+ {[%clk
0:00:12]} 67... Ke6 {[%clk 0:00:12.5]} 68. Bg5 {[%clk 0:00:10.3]} 68... Nd6+
{[%clk 0:00:12.9]} 69. Kd3 {[%clk 0:00:09.9]} 69... Nf7 {[%clk 0:00:09.2]} 70.
Nxf7 {[%clk 0:00:10.1]} 70... Kxf7 {[%clk 0:00:10.1]} 71. Kc4 {[%clk 0:00:10.6]}
71... Ke6 {[%clk 0:00:10.5]} 72. b4 {[%clk 0:00:11.1]} 72... Kd7 {[%clk
0:00:10.8]} 73. b5 {[%clk 0:00:11.3]} 73... Bd6 {[%clk 0:00:10.6]} 74. Kd5
{[%clk 0:00:10.7]} 74... Bc7 {[%clk 0:00:10.5]} 75. f5 {[%clk 0:00:10.4]} 75...
gxf5 {[%clk 0:00:10.8]} 76. gxf5 {[%clk 0:00:11.3]} 76... Bb6 {[%clk 0:00:11.4]}
77. Bf6 {[%clk 0:00:10.7]} 77... Ke8 {[%clk 0:00:11.5]} 78. Kc6 {[%clk
0:00:10.6]} 78... Be3 {[%clk 0:00:10.5]} 79. Be5 {[%clk 0:00:10.7]} 79... Ke7
{[%clk 0:00:09]} 80. b6 {[%clk 0:00:10.9]} 80... Bf2 {[%clk 0:00:06.7]} 81. b7
{[%clk 0:00:10.7]} 81... Ba7 {[%clk 0:00:06.9]} 82. Kd5 {[%clk 0:00:08.9]} 82...
Kd7 {[%clk 0:00:07.1]} 83. b8=Q {[%clk 0:00:08.7]} 83... Bxb8 {[%clk 0:00:07.3]}
84. Bxb8 {[%clk 0:00:09.6]} 84... Kc8 {[%clk 0:00:08.2]} 85. Bd6 {[%clk
0:00:09.2]} 85... Kd7 {[%clk 0:00:09.1]} 86. f6 {[%clk 0:00:09.7]} 86... Ke8
{[%clk 0:00:10]} 87. Ke6 {[%clk 0:00:10.2]} 1-0

[Event "*** Titled Tuesday Blitz"]
[Site "Chess.com"]
[Date "2020.03.03"]
[Round "6"]
[White "Abund"]
[Black "Vyacheslav_N"]
[Result "0-1"]
[WhiteElo "2697"]
[BlackElo "2604"]
[TimeControl "180+1"]
[EndTime "10:05:49 PST"]
[Termination "Vyacheslav_N won by checkmate"]

1. Nf3 {[%clk 0:03:00.9]} 1... d5 {[%clk 0:02:54.2]} 2. d4 {[%clk 0:02:54.7]}
2... c6 {[%clk 0:02:52.5]} 3. c4 {[%clk 0:02:54.3]} 3... Nf6 {[%clk 0:02:50.8]}
4. e3 {[%clk 0:02:54.5]} 4... a6 {[%clk 0:02:39.7]} 5. Nbd2 {[%clk 0:02:48.7]}
5... Bg4 {[%clk 0:02:32.5]} 6. Bd3 {[%clk 0:02:45.5]} 6... Nbd7 {[%clk
0:02:31.6]} 7. O-O {[%clk 0:02:40.5]} 7... e5 {[%clk 0:02:28.9]} 8. cxd5 {[%clk
0:02:34.8]} 8... Nxd5 {[%clk 0:02:18.4]} 9. Be2 {[%clk 0:02:19.4]} 9... exd4
{[%clk 0:02:08.3]} 10. Nxd4 {[%clk 0:02:14.9]} 10... Bxe2 {[%clk 0:02:02.6]} 11.
Qxe2 {[%clk 0:02:15.8]} 11... Bc5 {[%clk 0:01:27.8]} 12. N2b3 {[%clk 0:02:08.5]}
12... Bb6 {[%clk 0:00:53.9]} 13. e4 {[%clk 0:02:00]} 13... Ne7 {[%clk
0:00:53.7]} 14. e5 {[%clk 0:01:55.9]} 14... Nc5 {[%clk 0:00:47]} 15. Nxc5 {[%clk
0:01:37.2]} 15... Bxc5 {[%clk 0:00:47.9]} 16. Nb3 {[%clk 0:01:37.3]} 16... Bb6
{[%clk 0:00:43.9]} 17. e6 {[%clk 0:01:35.6]} 17... Nd5 {[%clk 0:00:44.8]} 18.
exf7+ {[%clk 0:01:27.7]} 18... Kxf7 {[%clk 0:00:45]} 19. Be3 {[%clk 0:01:21.7]}
19... Re8 {[%clk 0:00:44.2]} 20. Rae1 {[%clk 0:00:58.2]} 20... Nxe3 {[%clk
0:00:21.1]} 21. fxe3+ {[%clk 0:00:57.1]} 21... Kg8 {[%clk 0:00:21.8]} 22. Qc4+
{[%clk 0:00:46.4]} 22... Kh8 {[%clk 0:00:20.7]} 23. Rf3 {[%clk 0:00:39.6]} 23...
Qd5 {[%clk 0:00:15.2]} 24. Qf4 {[%clk 0:00:35.3]} 24... h6 {[%clk 0:00:13.9]}
25. Kh1 {[%clk 0:00:34.3]} 25... a5 {[%clk 0:00:10.3]} 26. e4 {[%clk 0:00:22.7]}
26... Qe6 {[%clk 0:00:08.2]} 27. e5 {[%clk 0:00:19.5]} 27... a4 {[%clk
0:00:08.5]} 28. Nd4 {[%clk 0:00:18]} 28... Bxd4 {[%clk 0:00:08.9]} 29. Qxd4
{[%clk 0:00:18.1]} 29... Qxa2 {[%clk 0:00:09.6]} 30. Qd7 {[%clk 0:00:14.3]}
30... Qe6 {[%clk 0:00:04.3]} 31. Qxb7 {[%clk 0:00:11]} 31... Rab8 {[%clk
0:00:04.8]} 32. Qa7 {[%clk 0:00:09.2]} 32... Rxb2 {[%clk 0:00:05.3]} 33. Rg3
{[%clk 0:00:09.2]} 33... Qe7 {[%clk 0:00:04.9]} 34. Qxa4 {[%clk 0:00:08.5]}
34... Rb4 {[%clk 0:00:04.8]} 35. Qxc6 {[%clk 0:00:08.3]} 35... Rbb8 {[%clk
0:00:02.7]} 36. Qe4 {[%clk 0:00:08.1]} 36... Rb5 {[%clk 0:00:02.3]} 37. Rge3
{[%clk 0:00:07.4]} 37... Rc5 {[%clk 0:00:03.2]} 38. h3 {[%clk 0:00:07.7]} 38...
Rb5 {[%clk 0:00:03.1]} 39. e6 {[%clk 0:00:08]} 39... Rc5 {[%clk 0:00:03.7]} 40.
Rf3 {[%clk 0:00:08]} 40... Rc6 {[%clk 0:00:03.8]} 41. Rfe3 {[%clk 0:00:07.2]}
41... Rd6 {[%clk 0:00:03.9]} 42. Qf5 {[%clk 0:00:07.3]} 42... Rf8 {[%clk
0:00:03.8]} 43. Qg4 {[%clk 0:00:06.7]} 43... Rf6 {[%clk 0:00:04.4]} 44. Re5
{[%clk 0:00:06.7]} 44... Rd8 {[%clk 0:00:04.1]} 45. Qe4 {[%clk 0:00:07.2]} 45...
Rff8 {[%clk 0:00:03.2]} 46. Qe2 {[%clk 0:00:07.4]} 46... Rd6 {[%clk 0:00:03.8]}
47. Qe3 {[%clk 0:00:07.7]} 47... Rfd8 {[%clk 0:00:04.1]} 48. Qe4 {[%clk
0:00:08.3]} 48... Rd4 {[%clk 0:00:04.4]} 49. Qg6 {[%clk 0:00:08.4]} 49... Rf8
{[%clk 0:00:03.9]} 50. Rf5 {[%clk 0:00:08.4]} 50... Rdd8 {[%clk 0:00:03.5]} 51.
Rfe5 {[%clk 0:00:07]} 51... Rf6 {[%clk 0:00:03.5]} 52. Qg4 {[%clk 0:00:07.6]}
52... Rd6 {[%clk 0:00:03.9]} 53. Qe2 {[%clk 0:00:07.9]} 53... Rd8 {[%clk
0:00:04.1]} 54. Qc4 {[%clk 0:00:08.4]} 54... Rff8 {[%clk 0:00:04.6]} 55. Qb3
{[%clk 0:00:08.3]} 55... Rfe8 {[%clk 0:00:04.9]} 56. Qa2 {[%clk 0:00:08.4]}
56... Rf8 {[%clk 0:00:05.5]} 57. Qa6 {[%clk 0:00:08.7]} 57... Rf6 {[%clk
0:00:05.9]} 58. Qe2 {[%clk 0:00:09]} 58... Rff8 {[%clk 0:00:06.2]} 59. Qe4
{[%clk 0:00:09.6]} 59... Rd6 {[%clk 0:00:06.6]} 60. Qe3 {[%clk 0:00:09.5]} 60...
Rf6 {[%clk 0:00:07.1]} 61. Qg3 {[%clk 0:00:09.9]} 61... Rf8 {[%clk 0:00:07.7]}
62. Qg4 {[%clk 0:00:09.3]} 62... Rdd8 {[%clk 0:00:08.2]} 63. R5e4 {[%clk
0:00:09.4]} 63... Rd6 {[%clk 0:00:08.7]} 64. Rd4 {[%clk 0:00:09]} 64... Rfd8
{[%clk 0:00:05.2]} 65. Rf4 {[%clk 0:00:07.9]} 65... Re8 {[%clk 0:00:02.8]} 66.
Rfe4 {[%clk 0:00:04.5]} 66... Rf8 {[%clk 0:00:02.4]} 67. Qg3 {[%clk 0:00:04.8]}
67... Rf6 {[%clk 0:00:02.6]} 68. Rg4 {[%clk 0:00:04.8]} 68... Rf8 {[%clk
0:00:02.9]} 69. Rg6 {[%clk 0:00:04.8]} 69... Rd5 {[%clk 0:00:01.9]} 70. Kh2
{[%clk 0:00:04.7]} 70... Rg5 {[%clk 0:00:02.1]} 71. Rxg5 {[%clk 0:00:04.7]}
71... hxg5 {[%clk 0:00:03]} 72. Qe5 {[%clk 0:00:04.8]} 72... Re8 {[%clk
0:00:02.4]} 73. Re4 {[%clk 0:00:05.4]} 73... Kh7 {[%clk 0:00:02.9]} 74. Qf5+
{[%clk 0:00:05.7]} 74... Kh6 {[%clk 0:00:03.1]} 75. Qg4 {[%clk 0:00:05.9]} 75...
Qf6 {[%clk 0:00:03.6]} 76. Qg3 {[%clk 0:00:06]} 76... Rxe6 {[%clk 0:00:03.1]}
77. Rg4 {[%clk 0:00:05.6]} 77... Qe5 {[%clk 0:00:02.9]} 78. Kg1 {[%clk 0:00:05]}
78... Qxg3 {[%clk 0:00:03.2]} 79. Rxg3 {[%clk 0:00:05.9]} 79... Re1+ {[%clk
0:00:03.7]} 80. Kf2 {[%clk 0:00:05.8]} 80... Re6 {[%clk 0:00:04.6]} 81. Kf3
{[%clk 0:00:06]} 81... Rf6+ {[%clk 0:00:05.5]} 82. Ke4 {[%clk 0:00:06.1]} 82...
Kh5 {[%clk 0:00:06.4]} 83. Rg4 {[%clk 0:00:05.8]} 83... Rf2 {[%clk 0:00:05.8]}
84. Ke5 {[%clk 0:00:05.8]} 84... g6 {[%clk 0:00:05.8]} 85. Ke6 {[%clk
0:00:05.7]} 85... Rf5 {[%clk 0:00:06.3]} 86. Ke7 {[%clk 0:00:05.6]} 86... Rf4
{[%clk 0:00:06.5]} 87. Rg3 {[%clk 0:00:05]} 87... g4 {[%clk 0:00:05.2]} 88.
hxg4+ {[%clk 0:00:03.4]} 88... Rxg4 {[%clk 0:00:06.1]} 89. Rf3 {[%clk
0:00:03.5]} 89... Rxg2 {[%clk 0:00:06]} 90. Kf6 {[%clk 0:00:04]} 90... g5 {[%clk
0:00:05.4]} 91. Kf5 {[%clk 0:00:04]} 91... g4 {[%clk 0:00:05.3]} 92. Rf1 {[%clk
0:00:03.9]} 92... Kh4 {[%clk 0:00:04.1]} 93. Kf4 {[%clk 0:00:03.4]} 93... g3
{[%clk 0:00:02.4]} 94. Kf3 {[%clk 0:00:04.3]} 94... Kh3 {[%clk 0:00:02.1]} 95.
Rh1+ {[%clk 0:00:04.2]} 95... Rh2 {[%clk 0:00:02.6]} 96. Rg1 {[%clk 0:00:04.6]}
96... Rf2+ {[%clk 0:00:02.4]} 97. Ke3 {[%clk 0:00:05.1]} 97... Kh2 {[%clk
0:00:02.9]} 98. Rc1 {[%clk 0:00:05.3]} 98... Rf6 {[%clk 0:00:01.9]} 99. Rc5
{[%clk 0:00:04.6]} 99... Rh6 {[%clk 0:00:01.9]} 100. Kf3 {[%clk 0:00:03.8]}
100... Rf6+ {[%clk 0:00:02.4]} 101. Kg4 {[%clk 0:00:03.4]} 101... g2 {[%clk
0:00:02.7]} 102. Rc2 {[%clk 0:00:03.9]} 102... Kh1 {[%clk 0:00:02.2]} 103. Kh3
{[%clk 0:00:03.9]} 103... g1=Q {[%clk 0:00:02.5]} 104. Rf2 {[%clk 0:00:03.7]}
104... Rh6# {[%clk 0:00:02.6]} 0-1

[Event "*** Titled Tuesday Blitz"]
[Site "Chess.com"]
[Date "2020.03.03"]
[Round "7"]
[White "Gabix_94"]
[Black "MergenKakabaev"]
[Result "1-0"]
[WhiteElo "2703"]
[BlackElo "2491"]
[TimeControl "180+1"]
[EndTime "10:09:30 PST"]
[Termination "Gabix_94 won by resignation"]

1. d4 {[%clk 0:03:00.9]} 1... d5 {[%clk 0:02:58.2]} 2. c4 {[%clk 0:03:01.3]}
2... c6 {[%clk 0:02:57.3]} 3. Nc3 {[%clk 0:03:01.4]} 3... Nf6 {[%clk 0:02:56.9]}
4. Nf3 {[%clk 0:03:01.4]} 4... e6 {[%clk 0:02:57.2]} 5. Qd3 {[%clk 0:03:01]}
5... Nbd7 {[%clk 0:02:54.2]} 6. g3 {[%clk 0:03:00.2]} 6... Be7 {[%clk
0:02:53.8]} 7. Bg2 {[%clk 0:03:00]} 7... b6 {[%clk 0:02:54.4]} 8. O-O {[%clk
0:03:00.6]} 8... Bb7 {[%clk 0:02:54.7]} 9. b3 {[%clk 0:03:01.2]} 9... c5 {[%clk
0:02:54.6]} 10. cxd5 {[%clk 0:02:59.2]} 10... exd5 {[%clk 0:02:54.2]} 11. dxc5
{[%clk 0:02:56.8]} 11... Nxc5 {[%clk 0:02:52.2]} 12. Qf5 {[%clk 0:02:50.7]}
12... O-O {[%clk 0:02:51.3]} 13. Rd1 {[%clk 0:02:45.1]} 13... Qc8 {[%clk
0:02:50.6]} 14. Qb1 {[%clk 0:02:42.2]} 14... Nce4 {[%clk 0:02:49.9]} 15. Nxe4
{[%clk 0:02:33]} 15... dxe4 {[%clk 0:02:50.7]} 16. Nd4 {[%clk 0:02:33.6]} 16...
Rd8 {[%clk 0:02:23.6]} 17. Bb2 {[%clk 0:02:28]} 17... Qg4 {[%clk 0:02:15.9]} 18.
e3 {[%clk 0:02:25.3]} 18... h5 {[%clk 0:02:11.3]} 19. h3 {[%clk 0:02:17.9]}
19... Qg5 {[%clk 0:02:10.6]} 20. Qc2 {[%clk 0:02:16.4]} 20... Rac8 {[%clk
0:02:08.9]} 21. Qe2 {[%clk 0:02:15.8]} 21... h4 {[%clk 0:02:06.2]} 22. gxh4
{[%clk 0:02:13.1]} 22... Qxh4 {[%clk 0:02:05.3]} 23. Nf5 {[%clk 0:02:12.3]}
23... Rxd1+ {[%clk 0:01:50]} 24. Rxd1 {[%clk 0:02:13.2]} 1-0

[Event "*** Titled Tuesday Blitz"]
[Site "Chess.com"]
[Date "2020.03.03"]
[Round "7"]
[White "czasnaszachy"]
[Black "DonBroca"]
[Result "1-0"]
[WhiteElo "2273"]
[BlackElo "2060"]
[TimeControl "180+1"]
[EndTime "10:09:52 PST"]
[Termination "czasnaszachy won by resignation"]

1. d4 {[%clk 0:03:00.9]} 1... Nf6 {[%clk 0:02:18.6]} 2. c4 {[%clk 0:03:00]} 2...
g6 {[%clk 0:01:51.7]} 3. Nc3 {[%clk 0:02:59.8]} 3... Bg7 {[%clk 0:01:52.2]} 4.
e4 {[%clk 0:02:59.7]} 4... d6 {[%clk 0:01:51.7]} 5. f4 {[%clk 0:03:00.2]} 5...
O-O {[%clk 0:01:50.3]} 6. Nf3 {[%clk 0:03:00.8]} 6... c5 {[%clk 0:01:49.5]} 7.
d5 {[%clk 0:03:00.7]} 7... Nbd7 {[%clk 0:01:27]} 8. Bd3 {[%clk 0:02:59.6]} 8...
e5 {[%clk 0:01:03.8]} 9. dxe6 {[%clk 0:02:56.4]} 9... fxe6 {[%clk 0:01:03.8]}
10. O-O {[%clk 0:02:56]} 10... a6 {[%clk 0:01:02.2]} 11. Ng5 {[%clk 0:02:48.7]}
11... Qe7 {[%clk 0:00:58.7]} 12. Qe1 {[%clk 0:02:26.4]} 12... h6 {[%clk
0:00:50.3]} 13. Nh3 {[%clk 0:02:25.2]} 13... Rb8 {[%clk 0:00:48.7]} 14. Qg3
{[%clk 0:02:23.7]} 14... Kh7 {[%clk 0:00:47.5]} 15. e5 {[%clk 0:02:22.9]} 1-0

[Event "*** Titled Tuesday Blitz"]
[Site "Chess.com"]
[Date "2020.03.03"]
[Round "7"]
[White "ArlanCabe"]
[Black "Irishchessman16"]
[Result "1-0"]
[WhiteElo "2350"]
[BlackElo "2195"]
[TimeControl "180+1"]
[EndTime "10:10:48 PST"]
[Termination "ArlanCabe won by resignation"]

1. e4 {[%clk 0:03:00.9]} 1... c5 {[%clk 0:02:59.4]} 2. Nf3 {[%clk 0:03:00.2]}
2... Nc6 {[%clk 0:02:58.9]} 3. d4 {[%clk 0:03:00.3]} 3... cxd4 {[%clk
0:02:58.8]} 4. Nxd4 {[%clk 0:03:01.2]} 4... Nf6 {[%clk 0:02:59.1]} 5. Nc3 {[%clk
0:03:01.7]} 5... e5 {[%clk 0:02:59.6]} 6. Ndb5 {[%clk 0:02:59.6]} 6... d6 {[%clk
0:03:00]} 7. Bg5 {[%clk 0:02:57.6]} 7... a6 {[%clk 0:03:00]} 8. Na3 {[%clk
0:02:57.2]} 8... b5 {[%clk 0:02:59.6]} 9. Nd5 {[%clk 0:02:57.3]} 9... Be7 {[%clk
0:02:58.8]} 10. Bxf6 {[%clk 0:02:56.3]} 10... Bxf6 {[%clk 0:02:58.4]} 11. c3
{[%clk 0:02:56.8]} 11... Bg5 {[%clk 0:02:55.2]} 12. Nc2 {[%clk 0:02:54.4]} 12...
Rb8 {[%clk 0:02:54.3]} 13. Bd3 {[%clk 0:02:52.8]} 13... O-O {[%clk 0:02:52.7]}
14. h4 {[%clk 0:02:52]} 14... Bh6 {[%clk 0:02:51.2]} 15. g4 {[%clk 0:02:51.6]}
15... g6 {[%clk 0:02:51.1]} 16. g5 {[%clk 0:02:51]} 16... Bg7 {[%clk 0:02:50.8]}
17. Qf3 {[%clk 0:02:50.6]} 17... f5 {[%clk 0:02:49.6]} 18. gxf6 {[%clk
0:02:48.3]} 18... Bxf6 {[%clk 0:02:48.8]} 19. h5 {[%clk 0:02:39.2]} 19... Bg5
{[%clk 0:02:47]} 20. Qg3 {[%clk 0:02:37.3]} 20... Kg7 {[%clk 0:02:34.3]} 21.
Nce3 {[%clk 0:02:33.6]} 21... b4 {[%clk 0:02:30.3]} 22. c4 {[%clk 0:02:33]}
22... Nd4 {[%clk 0:02:29.4]} 23. O-O-O {[%clk 0:02:22.8]} 23... Rf3 {[%clk
0:02:09.7]} 24. Qh2 {[%clk 0:02:18.1]} 24... Qf8 {[%clk 0:02:05.2]} 25. hxg6
{[%clk 0:02:15.6]} 25... h6 {[%clk 0:02:05]} 26. Rdf1 {[%clk 0:02:04.4]} 26...
Bh3 {[%clk 0:01:30]} 27. Rfg1 {[%clk 0:02:02.9]} 27... Be6 {[%clk 0:00:48.6]}
28. Rxg5 {[%clk 0:01:58.9]} 1-0

[Event "*** Titled Tuesday Blitz"]
[Site "Chess.com"]
[Date "2020.03.03"]
[Round "7"]
[White "Shield12"]
[Black "Kobalia"]
[Result "1-0"]
[WhiteElo "2891"]
[BlackElo "2624"]
[TimeControl "180+1"]
[EndTime "10:10:50 PST"]
[Termination "Shield12 won by resignation"]

1. e4 {[%clk 0:03:00.9]} 1... c6 {[%clk 0:02:59.3]} 2. d4 {[%clk 0:03:00.4]}
2... d5 {[%clk 0:02:59.8]} 3. exd5 {[%clk 0:03:01.3]} 3... cxd5 {[%clk
0:02:59.8]} 4. Bd3 {[%clk 0:03:01.9]} 4... Nc6 {[%clk 0:02:59.9]} 5. c3 {[%clk
0:03:02.4]} 5... g6 {[%clk 0:02:58.4]} 6. Nf3 {[%clk 0:03:01]} 6... Bf5 {[%clk
0:02:58.1]} 7. Ne5 {[%clk 0:03:00.3]} 7... Bxd3 {[%clk 0:02:57.2]} 8. Qxd3
{[%clk 0:02:59.1]} 8... Bg7 {[%clk 0:02:56.6]} 9. Bf4 {[%clk 0:02:58.6]} 9...
Nf6 {[%clk 0:02:55.2]} 10. Nd2 {[%clk 0:02:56.9]} 10... O-O {[%clk 0:02:52.2]}
11. O-O {[%clk 0:02:56.6]} 11... Nh5 {[%clk 0:02:49.7]} 12. Bg3 {[%clk
0:02:52.5]} 12... Nxg3 {[%clk 0:02:48.7]} 13. Qxg3 {[%clk 0:02:53.4]} 13... Bxe5
{[%clk 0:02:43.2]} 14. dxe5 {[%clk 0:02:54.3]} 14... d4 {[%clk 0:02:43.5]} 15.
e6 {[%clk 0:02:52.3]} 15... f5 {[%clk 0:02:39.4]} 16. Rad1 {[%clk 0:02:49.8]}
16... dxc3 {[%clk 0:02:36]} 17. bxc3 {[%clk 0:02:47.2]} 17... Qb8 {[%clk
0:02:34]} 18. f4 {[%clk 0:02:44.2]} 18... Qd6 {[%clk 0:02:30.9]} 19. Rfe1 {[%clk
0:02:43]} 19... Rad8 {[%clk 0:02:29.5]} 20. h4 {[%clk 0:02:42.8]} 20... Qd3
{[%clk 0:02:25.8]} 21. Nf3 {[%clk 0:02:39.8]} 21... Qxc3 {[%clk 0:02:23.8]} 22.
h5 {[%clk 0:02:37.8]} 22... Kg7 {[%clk 0:02:22.9]} 23. Rd7 {[%clk 0:02:33.3]}
23... Rxd7 {[%clk 0:02:15.1]} 24. exd7 {[%clk 0:02:32.2]} 24... Rd8 {[%clk
0:02:15]} 25. hxg6 {[%clk 0:02:24.7]} 25... hxg6 {[%clk 0:02:13.7]} 26. Re6
{[%clk 0:02:23.6]} 26... Qa1+ {[%clk 0:00:57.5]} 27. Kh2 {[%clk 0:02:13]} 27...
Rh8+ {[%clk 0:00:57.8]} 28. Nh4 {[%clk 0:02:13]} 28... Kf8 {[%clk 0:00:54]} 29.
Rxg6 {[%clk 0:02:01.2]} 29... Qxa2 {[%clk 0:00:51.6]} 30. Rxc6 {[%clk
0:01:56.1]} 1-0

[Event "*** Titled Tuesday Blitz"]
[Site "Chess.com"]
[Date "2020.03.03"]
[Round "7"]
[White "annacramling"]
[Black "ZEN-22"]
[Result "0-1"]
[WhiteElo "1922"]
[BlackElo "2216"]
[TimeControl "180+1"]
[EndTime "10:10:56 PST"]
[Termination "ZEN-22 won by resignation"]

1. d4 {[%clk 0:03:00.9]} 1... b6 {[%clk 0:03:00.9]} 2. c4 {[%clk 0:03:00]} 2...
Bb7 {[%clk 0:03:01.8]} 3. Nc3 {[%clk 0:02:58.9]} 3... e6 {[%clk 0:03:02.3]} 4.
e4 {[%clk 0:02:58.5]} 4... Bb4 {[%clk 0:03:02]} 5. Qc2 {[%clk 0:02:57.7]} 5...
f5 {[%clk 0:02:54.9]} 6. Bd3 {[%clk 0:02:52.4]} 6... Nf6 {[%clk 0:02:53]} 7. d5
{[%clk 0:02:06.6]} 7... fxe4 {[%clk 0:02:51.6]} 8. Bxe4 {[%clk 0:02:06.6]} 8...
exd5 {[%clk 0:02:51.8]} 9. cxd5 {[%clk 0:01:53.3]} 9... Qe7 {[%clk 0:02:49.9]}
10. f3 {[%clk 0:01:49.9]} 10... Bxd5 {[%clk 0:02:49.3]} 11. Bd2 {[%clk
0:01:22.5]} 11... Bxc3 {[%clk 0:02:47.7]} 12. Bxc3 {[%clk 0:01:22.5]} 12... Nxe4
{[%clk 0:02:46.6]} 13. fxe4 {[%clk 0:01:22.3]} 13... Bxe4 {[%clk 0:02:46.5]} 14.
Qe2 {[%clk 0:01:17.6]} 14... Bxg2 {[%clk 0:02:46]} 15. Qxe7+ {[%clk 0:01:12.3]}
15... Kxe7 {[%clk 0:02:45.7]} 16. O-O-O {[%clk 0:01:05.3]} 16... Bxh1 {[%clk
0:02:44.3]} 17. Bxg7 {[%clk 0:00:53.5]} 17... Rg8 {[%clk 0:02:43.5]} 18. Re1+
{[%clk 0:00:50.3]} 18... Kd8 {[%clk 0:02:43]} 19. Bf6+ {[%clk 0:00:48.6]} 19...
Kc8 {[%clk 0:02:42.8]} 20. Nh3 {[%clk 0:00:47.3]} 20... Bd5 {[%clk 0:02:41.1]}
21. Nf4 {[%clk 0:00:45]} 21... Bxa2 {[%clk 0:02:40.6]} 22. Kc2 {[%clk
0:00:20.6]} 22... Bf7 {[%clk 0:02:35.3]} 23. Re7 {[%clk 0:00:16.3]} 23... Bg6+
{[%clk 0:02:33.2]} 24. Kc3 {[%clk 0:00:12.5]} 24... Nc6 {[%clk 0:02:32.7]} 25.
Re3 {[%clk 0:00:07.9]} 25... Bf5 {[%clk 0:02:32.4]} 26. Nd5 {[%clk 0:00:06.6]}
26... Kb7 {[%clk 0:02:31.5]} 27. Bh4 {[%clk 0:00:04.7]} 27... Be6 {[%clk
0:02:30.6]} 28. Nf4 {[%clk 0:00:03.9]} 28... Rae8 {[%clk 0:02:28]} 29. Bg3
{[%clk 0:00:02.9]} 29... Bf5 {[%clk 0:02:27.3]} 0-1